bitfinex/quotes_BTCUSD_20250614
["timestamp","ask_amount","ask_price","bid_price","bid_amount"]
[1749891890366,0.04855833,105130.0,105120.0,0.4558148]
[1749891890571,0.23879898,105130.0,105120.0,0.4558148]
[1749891891025,0.23879898,105130.0,105120.0,0.44914116]
[1749891891749,0.23879898,105130.0,105120.0,0.4558148]
[1749891892429,0.04855833,105130.0,105120.0,0.4558148]
[1749891892658,0.02002287,105130.0,105120.0,1.0102116]
[1749891892880,0.03904639,105130.0,105120.0,1.10636081]
[1749891893071,0.02953454,105130.0,105120.0,1.10636081]
[1749891893238,0.02953454,105130.0,105120.0,1.08856443]
[1749891893442,0.0390463,105130.0,105120.0,1.10636081]
[1749891893657,0.0390463,105130.0,105120.0,1.09968717]
[1749891894089,0.0390463,105130.0,105120.0,1.10636081]
[1749891894277,0.0390463,105130.0,105120.0,0.37749932]
[1749891894515,0.02002287,105130.0,105120.0,0.44598263]
[1749891894697,0.02953463,105130.0,105120.0,0.44598263]
[1749891894911,0.02953463,105130.0,105120.0,0.4281861]
[1749891895114,0.02953463,105130.0,105120.0,0.43930898]
[1749891895315,0.02953454,105130.0,105120.0,0.44598266]
[1749891895488,0.02897999,105130.0,105120.0,0.42151238]
[1749891895689,0.58337679,105130.0,105120.0,0.44598252]
[1749891895913,0.58337679,105130.0,105120.0,0.42818605]
[1749891896292,0.58337679,105130.0,105120.0,0.42151238]
[1749891896497,0.58337679,105130.0,105120.0,0.44598252]
[1749891896935,0.59288855,105130.0,105120.0,0.44598252]
[1749891897418,0.59288855,105130.0,105120.0,0.44598118]
[1749891897637,0.59288855,105130.0,105120.0,0.44598115]
[1749891897878,0.59288855,105130.0,105120.0,0.42151238]
[1749891898103,0.59288855,105130.0,105120.0,0.44597848]
[1749891898331,0.59288855,105130.0,105120.0,0.4393059]
[1749891898550,0.59288855,105130.0,105120.0,0.44597847]
[1749891898764,0.6024004,105130.0,105120.0,0.44597877]
[1749891898977,0.59288855,105130.0,105120.0,0.44597888]
[1749891899181,0.59288855,105130.0,105120.0,0.4393062]
[1749891899390,0.59288855,105130.0,105120.0,0.42818515]
[1749891899642,0.59288855,105130.0,105120.0,0.44597938]
[1749891899851,0.59288855,105130.0,105120.0,0.44597943]
[1749891900066,0.59288855,105130.0,105120.0,0.4393066]
[1749891900264,0.59288855,105130.0,105120.0,0.42818521]
[1749891900477,0.59288855,105130.0,105120.0,0.44597943]
[1749891900681,0.59288855,105130.0,105120.0,0.44597944]
[1749891900910,0.59288855,105130.0,105120.0,0.42818521]
[1749891901122,0.59288855,105130.0,105120.0,0.44597943]
[1749891901330,0.6024004,105130.0,105120.0,0.42818521]
[1749891901529,0.6024004,105130.0,105120.0,0.44597943]
[1749891901745,0.59288855,105130.0,105120.0,0.44597943]
[1749891901952,0.59288855,105130.0,105120.0,0.44597944]
[1749891902537,0.59288855,105130.0,105120.0,0.42151238]
[1749891902954,0.6024004,105130.0,105120.0,0.4393066]
[1749891903407,0.6024004,105130.0,105120.0,0.44597944]
[1749891903612,0.7926416,105130.0,105120.0,0.44597943]
[1749891903862,0.60240095,105130.0,105120.0,0.44597943]
[1749891904069,0.58337716,105130.0,105120.0,0.44597943]
[1749891904280,0.59288901,105130.0,105120.0,0.42818521]
[1749891904485,0.59288901,105130.0,105120.0,0.42151238]
[1749891904931,0.59288901,105130.0,105120.0,0.44597969]
[1749891905152,0.59288901,105130.0,105120.0,0.43930679]
[1749891905367,0.59288901,105130.0,105120.0,0.43930722]
[1749891905580,0.79264169,105130.0,105120.0,0.44598028]
[1749891905801,0.60240104,105130.0,105120.0,0.44598028]
[1749891906069,0.59288901,105130.0,105120.0,0.44598027]
[1749891906306,0.59288901,105130.0,105120.0,0.42818544]
[1749891906531,0.59288901,105130.0,105120.0,0.44598028]
[1749891906771,0.59288901,105130.0,105120.0,0.42818544]
[1749891906979,0.59288901,105130.0,105120.0,0.42151238]
[1749891907197,0.59288901,105130.0,105120.0,0.44598076]
[1749891907650,0.59288901,105130.0,105120.0,0.43930757]
[1749891907847,0.59288901,105130.0,105120.0,0.42151238]
[1749891908286,0.59288901,105130.0,105120.0,0.42818561]
[1749891908495,0.59288901,105130.0,105120.0,0.44598111]
[1749891908762,0.59288901,105130.0,105120.0,0.43930831]
[1749891909025,0.59288901,105130.0,105120.0,0.44598375]
[1749891909243,0.59288901,105130.0,105120.0,0.42818659]
[1749891909680,0.59288901,105130.0,105120.0,0.43931042]
[1749891909899,0.59288901,105130.0,105120.0,0.44598472]
[1749891910090,0.59288901,105130.0,105120.0,0.44598469]
[1749891910333,0.59288901,105130.0,105120.0,0.44598468]
[1749891910532,0.59288901,105130.0,105120.0,0.44598463]
[1749891910958,0.59288901,105130.0,105120.0,0.44598464]
[1749891911176,0.78312966,105130.0,105120.0,0.44598464]
[1749891911398,0.03849221,105130.0,105120.0,0.44598918]
[1749891911619,0.03849221,105130.0,105120.0,0.44599087]
[1749891911840,0.59288901,105130.0,105120.0,0.44599087]
[1749891912272,0.58337753,105130.0,105120.0,0.43647846]
[1749891912494,0.58337753,105130.0,105120.0,0.4364784]
[1749891912887,0.58337753,105130.0,105120.0,0.43647265]
[1749891913777,0.02898073,105130.0,105120.0,0.42979657]
[1749891913985,0.58337753,105130.0,105120.0,0.43647032]
[1749891914202,0.58337753,105130.0,105120.0,0.43647012]
[1749891914420,0.58337753,105130.0,105120.0,0.43647007]
[1749891915334,0.77361818,105130.0,105120.0,0.4119999]
[1749891915539,0.58337753,105130.0,105120.0,0.43647025]
[1749891916166,0.59288947,105130.0,105120.0,0.43647014]
[1749891916377,0.59288947,105130.0,105120.0,0.42979652]
[1749891916605,0.78313012,105130.0,105120.0,0.42979652]
[1749891916800,0.78313012,105130.0,105120.0,0.43647025]
[1749891916946,0.59288947,105130.0,105120.0,0.41867363]
[1749891917165,0.59288947,105130.0,105120.0,0.43647025]
[1749891917774,0.79264215,105130.0,105120.0,0.43647025]
[1749891917977,0.78313048,105130.0,105120.0,0.42695795]
[1749891918371,0.77361872,105130.0,105120.0,0.40916142]
[1749891918628,0.77361872,105130.0,105120.0,0.42695804]
[1749891919024,0.77361872,105130.0,105120.0,0.42979688]
[1749891919589,0.77361872,105130.0,105120.0,0.43647081]
[1749891919795,0.77361872,105130.0,105120.0,0.44598338]
[1749891920030,0.77361872,105130.0,105120.0,0.43769885]
[1749891920433,0.77361872,105130.0,105120.0,0.45549576]
[1749891920651,0.77361872,105130.0,105120.0,0.4488217]
[1749891920878,0.77361872,105130.0,105120.0,0.43102504]
[1749891921051,0.77361872,105130.0,105120.0,0.45549552]
[1749891921226,0.54861148,105130.0,105120.0,0.45549552]
[1749891921430,0.20926462,105130.0,105120.0,0.4554956]
[1749891921652,0.20926462,105130.0,105120.0,0.45549562]
[1749891921975,0.20926462,105130.0,105120.0,0.437699]
[1749891922122,0.20926462,105130.0,105120.0,0.44882213]
[1749891922321,0.20926462,105130.0,105120.0,0.45549615]
[1749891922547,0.21877647,105130.0,105120.0,0.45549618]
[1749891922929,0.21877647,105130.0,105120.0,0.45549621]
[1749891923356,0.02853582,105130.0,105120.0,0.45549567]
[1749891923576,0.02853582,105130.0,105120.0,0.43769852]
[1749891923789,0.02853582,105130.0,105120.0,0.45549589]
[1749891924006,0.01902379,105130.0,105120.0,0.448824]
[1749891924213,0.01902379,105130.0,105120.0,0.45550081]
[1749891924434,0.21877647,105130.0,105120.0,1.0003859]
[1749891925078,0.21877647,105130.0,105120.0,1.0098982]
[1749891925282,0.21877647,105130.0,105120.0,1.00322271]
[1749891925574,0.21877647,105130.0,105120.0,1.00989831]
[1749891925814,0.21877647,105130.0,105120.0,1.00989864]
[1749891926017,0.21877647,105130.0,105120.0,1.00990333]
[1749891926249,0.21877647,105130.0,105120.0,1.00322782]
[1749891926431,0.21877647,105130.0,105120.0,1.00990529]
[1749891926635,0.21877647,105130.0,105120.0,1.00990551]
[1749891926771,0.21877647,105130.0,105120.0,0.99209889]
[1749891926979,0.21877647,105130.0,105120.0,0.99209893]
[1749891927195,0.21877647,105130.0,105120.0,0.44883136]
[1749891927421,0.02853582,105130.0,105120.0,1.00323289]
[1749891927638,0.02853582,105130.0,105120.0,0.98542139]
[1749891927867,0.02853582,105130.0,105120.0,1.0099122]
[1749891928072,0.02853582,105130.0,105120.0,1.00991231]
[1749891928495,0.02853582,105130.0,105120.0,0.98542139]
[1749891928713,0.02853582,105130.0,105120.0,1.00991487]
[1749891928930,0.02853582,105130.0,105120.0,1.00991491]
[1749891929139,0.01902343,105130.0,105120.0,1.00323486]
[1749891929353,0.01902343,105130.0,105120.0,0.98542139]
[1749891929557,0.01902343,105130.0,105120.0,1.00991508]
[1749891929800,0.01902343,105130.0,105120.0,1.00323501]
[1749891930268,0.35108219,105140.0,105130.0,0.21877565]
[1749891930493,0.03961375,105140.0,105130.0,0.82668607]
[1749891930709,0.03010308,105140.0,105130.0,0.83336158]
[1749891930929,0.02853156,105140.0,105130.0,0.8155511]
[1749891931166,0.01902089,105140.0,105130.0,0.8266819]
[1749891931393,0.34,105150.0,105140.0,0.25725484]
[1749891931610,0.71662089,105170.0,105160.0,0.23819569]
[1749891931831,1.83434369,105170.0,105160.0,0.23819569]
[1749891932055,1.84265462,105170.0,105160.0,0.24487089]
[1749891932276,1.84265462,105170.0,105160.0,0.23819569]
[1749891932491,1.28825782,105170.0,105160.0,0.2531621]
[1749891932744,1.84265462,105170.0,105160.0,0.04517519]
[1749891932968,1.84270228,105170.0,105160.0,0.06297555]
[1749891933834,1.82187935,105170.0,105160.0,0.0385]
[1749891934070,1.82187935,105170.0,105160.0,0.06297565]
[1749891934284,1.85014536,105170.0,105160.0,0.06297565]
[1749891934505,1.85014536,105170.0,105160.0,0.06297601]
[1749891934965,1.85014536,105170.0,105160.0,0.05630073]
[1749891935209,1.69530536,105170.0,105160.0,0.06297604]
[1749891935432,1.85006536,105170.0,105160.0,0.04517531]
[1749891935647,1.85006536,105170.0,105160.0,0.06297614]
[1749891935857,1.85006536,105170.0,105160.0,0.06297696]
[1749891936076,1.85006536,105170.0,105160.0,0.06297867]
[1749891936289,1.85206536,105170.0,105160.0,0.06297867]
[1749891936537,1.85206536,105170.0,105160.0,0.05630326]
[1749891936770,1.85206536,105170.0,105160.0,0.04517622]
[1749891937002,1.85206536,105170.0,105160.0,0.06297947]
[1749891937249,1.85206536,105170.0,105160.0,0.0385]
[1749891937486,1.85206536,105170.0,105160.0,0.0629797]
[1749891937710,1.85206536,105170.0,105160.0,0.0385]
[1749891943184,1.84709828,105170.0,105160.0,0.0385]
[1749891944120,1.29270148,105170.0,105160.0,0.0385]
[1749891944332,1.84709828,105170.0,105160.0,0.0385]
[1749891945673,0.04092459,105170.0,105160.0,0.96725608]
[1749891945894,0.00404766,105170.0,105160.0,1.15475624]
[1749891946125,0.00404766,105170.0,105160.0,1.13703817]
[1749891946342,0.00404766,105170.0,105160.0,1.15473872]
[1749891946563,4.766e-05,105170.0,105160.0,0.42089003]
[1749891946768,4.766e-05,105170.0,105160.0,0.58069003]
[1749891946979,4.766e-05,105170.0,105160.0,0.43289003]
[1749891947187,4.766e-05,105170.0,105160.0,0.57003043]
[1749891947399,4.766e-05,105170.0,105160.0,1.1371297]
[1749891947608,4.766e-05,105170.0,105160.0,1.15412968]
[1749891948017,4.766e-05,105170.0,105160.0,1.13642645]
[1749891948216,4.766e-05,105170.0,105160.0,1.15412727]
[1749891948425,4.766e-05,105170.0,105160.0,1.15412678]
[1749891948631,4.766e-05,105170.0,105160.0,1.14842631]
[1749891948851,4.766e-05,105170.0,105160.0,1.16606864]
[1749891949061,4.766e-05,105170.0,105160.0,1.16606877]
[1749891949277,4.766e-05,105170.0,105160.0,1.15944705]
[1749891949486,4.766e-05,105170.0,105160.0,1.16606895]
[1749891949698,4.766e-05,105170.0,105160.0,1.16602895]
[1749891949927,4.766e-05,105170.0,105160.0,1.14174864]
[1749891950151,4.766e-05,105170.0,105160.0,1.16602894]
[1749891950373,0.00955526,105170.0,105160.0,0.40711347]
[1749891950578,4.766e-05,105170.0,105160.0,0.47229437]
[1749891950791,4.766e-05,105170.0,105160.0,0.85423215]
[1749891951001,4.766e-05,105170.0,105160.0,1.02002914]
[1749891951225,0.08004766,105170.0,105160.0,0.0921591]
[1749891951437,0.84362894,105170.0,105160.0,0.0745]
[1749891952087,0.84362894,105170.0,105160.0,0.024]
[1749891952088,0.88856807,105170.0,105160.0,0.024]
[1749891952513,0.20920419,105160.0,105150.0,0.25433039]
[1749891952720,0.21871296,105160.0,105150.0,0.24482053]
[1749891952989,0.20920446,105160.0,105150.0,0.24482053]
[1749891953201,0.19969569,105160.0,105150.0,0.24482053]
[1749891953420,0.20920473,105160.0,105150.0,0.3394581]
[1749891953640,0.20920473,105160.0,105150.0,0.8938549]
[1749891953857,0.20920473,105160.0,105150.0,0.9018549]
[1749891954076,0.20920473,105160.0,105150.0,0.25282053]
[1749891954293,0.20920473,105160.0,105150.0,0.81672719]
[1749891954709,0.20920473,105160.0,105150.0,0.26233039]
[1749891955264,0.20920473,105160.0,105150.0,0.26733039]
[1749891956117,0.20920473,105160.0,105150.0,0.27684016]
[1749891956557,0.20920473,105160.0,105150.0,0.38249906]
[1749891957433,0.20920473,105160.0,105150.0,0.28634984]
[1749891957657,0.20920473,105160.0,105150.0,0.26445915]
[1749891957881,0.20920473,105160.0,105150.0,0.27396908]
[1749891958134,0.20920473,105160.0,105150.0,0.26733048]
[1749891958563,0.20920473,105160.0,105150.0,0.25782053]
[1749891958777,0.24916473,105160.0,105150.0,0.2739689]
[1749891958989,0.24916473,105160.0,105150.0,0.2673303]
[1749891959210,0.24916473,105160.0,105150.0,0.26733048]
[1749891959424,0.24916473,105160.0,105150.0,0.27396891]
[1749891959659,0.24916473,105160.0,105150.0,0.26733048]
[1749891959880,0.24916473,105160.0,105150.0,0.27684034]
[1749891960348,0.24916473,105160.0,105150.0,0.25782053]
[1749891961687,0.23965569,105160.0,105150.0,0.0486]
[1749891962127,1.07220107,105160.0,105150.0,0.0486]
[1749891962574,0.57965569,105160.0,105150.0,0.0436]
[1749891962780,0.57965569,105160.0,105150.0,0.0356]
[1749891962990,0.57965569,105160.0,105150.0,0.0366]
[1749891964557,1.07220107,105160.0,105150.0,0.0366]
[1749891967093,0.57965569,105160.0,105150.0,0.0366]
[1749891969926,1.07220107,105160.0,105150.0,0.0366]
[1749891974555,0.42604658,105160.0,105150.0,0.0366]
[1749891975377,0.9802532,105160.0,105150.0,0.0366]
[1749891975590,0.98976251,105160.0,105150.0,0.0366]
[1749891978813,0.98976251,105160.0,105150.0,0.04327362]
[1749891980716,0.98976251,105160.0,105150.0,0.0366]
[1749891980884,0.98976251,105160.0,105150.0,0.04327362]
[1749891981692,0.98976251,105160.0,105150.0,0.0366]
[1749891981956,0.99967187,105160.0,105150.0,0.04327362]
[1749891982572,0.99967187,105160.0,105150.0,0.0366]
[1749891982773,0.98976251,105160.0,105150.0,0.0366]
[1749891982982,0.98976251,105160.0,105150.0,0.04994724]
[1749891983386,0.98976251,105160.0,105150.0,0.04327362]
[1749891983576,0.98976251,105160.0,105150.0,0.04994724]
[1749891983821,0.98976251,105160.0,105150.0,0.04327362]
[1749891984021,0.98976251,105160.0,105150.0,0.04994724]
[1749891984376,1.67885531,105160.0,105150.0,0.00767362]
[1749891984581,1.14746021,105160.0,105150.0,0.01434894]
[1749891984778,1.10881579,105160.0,105150.0,0.01434923]
[1749891984990,1.10881579,105160.0,105150.0,0.00767362]
[1749891986188,1.26361579,105160.0,105150.0,0.00767362]
[1749891987065,2.04852402,105160.0,105150.0,0.00767362]
[1749891987303,2.07709302,105160.0,105150.0,0.00767362]
[1749891987960,2.17324224,105160.0,105150.0,0.00767362]
[1749891990835,1.97848224,105160.0,105150.0,0.00767362]
[1749891991103,1.3259264,105160.0,105150.0,0.00767362]
[1749891991288,1.5209264,105160.0,105150.0,0.00767362]
[1749891992256,2.07513302,105160.0,105150.0,0.00767362]
[1749891994835,2.07513302,105160.0,105150.0,0.02557362]
[1749891995248,2.17128224,105160.0,105150.0,0.02557362]
[1749891995680,1.5459264,105160.0,105150.0,0.04347362]
[1749891995876,1.98642479,105160.0,105150.0,0.04347362]
[1749892000409,2.54063141,105160.0,105150.0,0.04347362]
[1749892000617,7.61913302,105160.0,105150.0,0.04347362]
[1749892002862,7.15013302,105160.0,105150.0,0.04347362]
[1749892003071,1.8199664,105160.0,105150.0,0.04347362]
[1749892003309,1.46055978,105160.0,105150.0,0.04347362]
[1749892003513,2.0148464,105160.0,105150.0,0.04347362]
[1749892004152,2.56905302,105160.0,105150.0,0.04347362]
[1749892005358,1.95340935,105160.0,105150.0,0.04347362]
[1749892013096,2.03340935,105160.0,105150.0,0.04347362]
[1749892013305,7.08340935,105160.0,105150.0,0.04347362]
[1749892013795,7.12146186,105160.0,105150.0,0.04347362]
[1749892014005,7.61423143,105160.0,105150.0,0.04347362]
[1749892014663,7.71038065,105160.0,105150.0,0.04347362]
[1749892015966,7.71038065,105160.0,105150.0,0.00767362]
[1749892016604,7.68187904,105160.0,105150.0,0.00767362]
[1749892017246,7.71041189,105160.0,105150.0,0.04657362]
[1749892017693,7.68187904,105160.0,105150.0,0.04657362]
[1749892017921,7.68187904,105160.0,105150.0,0.02697362]
[1749892018145,7.68187904,105160.0,105150.0,0.00767362]
[1749892018674,7.70934876,105160.0,105150.0,0.00767362]
[1749892018915,7.71034876,105160.0,105150.0,0.00767362]
[1749892019397,7.71034876,105160.0,105150.0,0.00667362]
[1749892019649,7.71234876,105160.0,105150.0,0.00667362]
[1749892019883,7.71534876,105160.0,105150.0,0.00667362]
[1749892020105,7.71334876,105160.0,105150.0,0.00667362]
[1749892020560,7.71634876,105160.0,105150.0,0.00667362]
[1749892021840,7.73634876,105160.0,105150.0,0.00667362]
[1749892022473,2.68634876,105160.0,105150.0,0.00667362]
[1749892022669,7.73634876,105160.0,105150.0,0.00667362]
[1749892023095,7.50259808,105160.0,105150.0,0.00667362]
[1749892023298,7.69278446,105160.0,105150.0,0.00667362]
[1749892024114,7.75604446,105160.0,105150.0,0.00667362]
[1749892024324,7.75603345,105160.0,105150.0,0.00667362]
[1749892025492,2.70603345,105160.0,105150.0,0.00667362]
[1749892025706,7.75603345,105160.0,105150.0,0.00667362]
[1749892027842,7.75153345,105160.0,105150.0,0.00667362]
[1749892031298,7.87501159,105160.0,105150.0,0.00667362]
[1749892031634,2.82501159,105160.0,105150.0,0.00667362]
[1749892031848,7.87501159,105160.0,105150.0,0.00667362]
[1749892032700,2.82501159,105160.0,105150.0,0.00667362]
[1749892032941,7.87501159,105160.0,105150.0,0.00667362]
[1749892033147,7.89405187,105160.0,105150.0,0.04447362]
[1749892034735,2.84405187,105160.0,105150.0,0.04447362]
[1749892034945,7.89405187,105160.0,105150.0,0.04447362]
[1749892036298,7.99415187,105160.0,105150.0,0.04447362]
[1749892036511,7.69917187,105160.0,105150.0,0.04447362]
[1749892036733,7.79810265,105160.0,105150.0,0.04447362]
[1749892036953,6.72706496,105160.0,105150.0,0.04447362]
[1749892037172,7.83608224,105160.0,105150.0,0.04447362]
[1749892038260,6.72706496,105160.0,105150.0,0.04447362]
[1749892038470,7.83608224,105160.0,105150.0,0.04447362]
[1749892040866,7.93223146,105160.0,105150.0,0.04447362]
[1749892041504,7.89425187,105160.0,105150.0,0.04447362]
[1749892043048,7.93225368,105160.0,105150.0,0.04447362]
[1749892043248,7.89425187,105160.0,105150.0,0.04447362]
[1749892046833,2.84425187,105160.0,105150.0,0.04447362]
[1749892047044,7.89425187,105160.0,105150.0,0.04447362]
[1749892050061,7.83719684,105160.0,105150.0,0.04447362]
[1749892055147,2.78719684,105160.0,105150.0,0.04447362]
[1749892055357,7.83719684,105160.0,105150.0,0.04447362]
[1749892058182,7.70386471,105160.0,105150.0,0.04447362]
[1749892060216,8.04386471,105160.0,105150.0,0.04447362]
[1749892063922,8.04378471,105160.0,105150.0,0.04447362]
[1749892064536,8.10088032,105160.0,105150.0,0.04447362]
[1749892064751,8.06283627,105160.0,105150.0,0.04447362]
[1749892065796,8.06283627,105160.0,105110.0,0.29244127]
[1749892065797,0.21879619,105120.0,105110.0,0.29244127]
[1749892066023,0.96822483,105120.0,105110.0,0.31025187]
[1749892066226,0.95871262,105120.0,105110.0,0.29244127]
[1749892067060,0.95871262,105120.0,105110.0,0.32072899]
[1749892067306,0.95871262,105120.0,105110.0,0.32072906]
[1749892067725,0.95871262,105120.0,105110.0,0.30291807]
[1749892067936,0.94920014,105120.0,105110.0,0.33672906]
[1749892068146,0.97556862,105120.0,105110.0,0.3094045]
[1749892068354,0.78064862,105120.0,105110.0,0.32721549]
[1749892068566,0.97552862,105120.0,105110.0,0.31770183]
[1749892068774,1.06216509,105120.0,105110.0,0.05180759]
[1749892069023,1.06216509,105120.0,105110.0,0.28829828]
[1749892069444,1.06216509,105120.0,105110.0,0.28829855]
[1749892069876,1.06216509,105120.0,105110.0,0.28829414]
[1749892070308,1.06216509,105120.0,105110.0,0.28829377]
[1749892070524,1.06216509,105120.0,105110.0,0.27048749]
[1749892070729,1.06216509,105120.0,105110.0,0.28829363]
[1749892071631,1.06216509,105120.0,105110.0,0.29780738]
[1749892071844,1.06216509,105120.0,105110.0,0.30732104]
[1749892072055,0.96601587,105120.0,105110.0,0.30732104]
[1749892072254,0.96601587,105120.0,105110.0,0.2895149]
[1749892072484,0.96601587,105120.0,105110.0,0.30732393]
[1749892073102,0.96601587,105120.0,105110.0,0.30732395]
[1749892073530,0.96601587,105120.0,105110.0,0.30732356]
[1749892073772,0.96601587,105120.0,105110.0,0.2895149]
[1749892074007,0.96601587,105120.0,105110.0,0.08850575]
[1749892074229,0.96601587,105120.0,105110.0,0.0706968]
[1749892074450,0.96601587,105120.0,105110.0,0.08850604]
[1749892074668,0.96601587,105120.0,105110.0,0.0606968]
[1749892075190,1.04601587,105120.0,105110.0,0.0676968]
[1749892075391,1.04601587,105120.0,105110.0,0.0516968]
[1749892075611,1.04601587,105120.0,105110.0,0.0526968]
[1749892075822,0.49150723,105120.0,105110.0,0.0526968]
[1749892076033,1.0578715,105120.0,105110.0,0.0526968]
[1749892076462,1.04601587,105120.0,105110.0,0.0576968]
[1749892078138,1.04601587,105120.0,105110.0,0.07550806]
[1749892078544,1.04601587,105120.0,105110.0,0.0576968]
[1749892079006,1.04601587,105120.0,105110.0,0.07550806]
[1749892079599,1.04601587,105120.0,105110.0,0.07550778]
[1749892080008,1.06819518,105120.0,105110.0,0.0576968]
[1749892080428,1.04601587,105120.0,105110.0,0.0576968]
[1749892080636,1.04601587,105120.0,105110.0,0.07550764]
[1749892080837,1.04601587,105120.0,105110.0,0.07550763]
[1749892081253,1.04601587,105120.0,105110.0,0.0755076]
[1749892081672,1.04601587,105120.0,105110.0,0.07550758]
[1749892081876,1.04601587,105120.0,105110.0,0.0576968]
[1749892082084,1.14216509,105120.0,105110.0,0.0576968]
[1749892082297,1.14216509,105120.0,105110.0,0.07550758]
[1749892082802,1.14216509,105120.0,105110.0,0.07550763]
[1749892083001,1.04601587,105120.0,105110.0,0.07550336]
[1749892084047,1.04601587,105120.0,105110.0,0.0576968]
[1749892084492,1.04601587,105120.0,105110.0,0.07550356]
[1749892084712,1.04601587,105120.0,105110.0,0.0576968]
[1749892084921,1.04601587,105120.0,105110.0,0.07550364]
[1749892085589,1.14216509,105120.0,105110.0,0.07550384]
[1749892085800,1.14216509,105120.0,105110.0,0.0755038]
[1749892086012,1.14216509,105120.0,105110.0,0.07550375]
[1749892086218,1.14216509,105120.0,105110.0,0.26578061]
[1749892086437,1.04601587,105120.0,105110.0,0.26578061]
[1749892086687,1.04601587,105120.0,105110.0,0.26578068]
[1749892087152,1.04601587,105120.0,105110.0,0.26578069]
[1749892087590,1.04601587,105120.0,105110.0,0.24797365]
[1749892087810,1.04601587,105120.0,105110.0,0.0576968]
[1749892088264,1.04601587,105120.0,105110.0,0.07550384]
[1749892088481,1.04601587,105120.0,105110.0,0.0576968]
[1749892089115,1.04601587,105120.0,105110.0,0.07550395]
[1749892089327,1.04601587,105120.0,105110.0,0.07550399]
[1749892089545,1.04601587,105120.0,105110.0,0.07550402]
[1749892090685,1.04601587,105120.0,105110.0,0.07550786]
[1749892091134,1.04601587,105120.0,105110.0,0.07550852]
[1749892092021,1.04601587,105120.0,105110.0,0.07550889]
[1749892092466,1.04601587,105120.0,105110.0,0.07550901]
[1749892093096,1.04601587,105120.0,105110.0,0.0576968]
[1749892093313,1.04601587,105120.0,105110.0,0.07550899]
[1749892093534,1.04601587,105120.0,105110.0,0.0755091]
[1749892093744,1.04601587,105120.0,105110.0,0.0576968]
[1749892093963,1.04601587,105120.0,105110.0,0.07550917]
[1749892094406,1.06884537,105120.0,105110.0,0.0576968]
[1749892094638,1.06884537,105120.0,105110.0,0.0755092]
[1749892094860,1.06884537,105120.0,105110.0,0.0576968]
[1749892095512,1.06884537,105120.0,105110.0,0.07551273]
[1749892095651,1.06884537,105120.0,105110.0,0.07551281]
[1749892095879,1.06884537,105120.0,105110.0,0.07551283]
[1749892096283,1.06884537,105120.0,105110.0,0.24797365]
[1749892096782,1.06884537,105120.0,105110.0,0.26579013]
[1749892097360,1.06884537,105120.0,105110.0,0.24797365]
[1749892097568,1.06884537,105120.0,105110.0,0.26579014]
[1749892098767,1.06884537,105120.0,105110.0,0.26578964]
[1749892098999,1.06884537,105120.0,105110.0,0.24797365]
[1749892099254,1.06884537,105120.0,105110.0,0.26578958]
[1749892099467,1.06884537,105120.0,105110.0,0.26578962]
[1749892099678,1.06884537,105120.0,105110.0,0.24797365]
[1749892099900,1.06884537,105120.0,105110.0,0.26579637]
[1749892100140,1.06884537,105120.0,105110.0,0.26579636]
[1749892100339,1.04601587,105120.0,105110.0,0.24797365]
[1749892100766,1.04601587,105120.0,105110.0,0.26579582]
[1749892100972,1.04601587,105120.0,105110.0,0.27530966]
[1749892101429,1.04601587,105120.0,105110.0,0.27530953]
[1749892101630,1.04601587,105120.0,105110.0,0.25748749]
[1749892101916,1.04553587,105120.0,105110.0,0.27530961]
[1749892102117,1.04553587,105120.0,105110.0,0.27530959]
[1749892102550,1.04553587,105120.0,105110.0,0.27530964]
[1749892102967,1.04553587,105120.0,105110.0,0.07551895]
[1749892104252,1.04553587,105120.0,105110.0,0.0576968]
[1749892104687,1.04553587,105120.0,105110.0,0.24797365]
[1749892104895,1.04553587,105120.0,105110.0,0.07551964]
[1749892105104,1.04553587,105120.0,105110.0,0.0576968]
[1749892105311,1.06837152,105120.0,105110.0,0.07551964]
[1749892106003,1.06837152,105120.0,105110.0,0.0576968]
[1749892106219,1.06837152,105120.0,105110.0,0.26579649]
[1749892106663,1.06837152,105120.0,105110.0,0.24797365]
[1749892106876,1.06837152,105120.0,105110.0,0.0576968]
[1749892107091,1.06837152,105120.0,105110.0,0.07551972]
[1749892107325,1.06837152,105120.0,105110.0,0.0767368]
[1749892107534,1.06837152,105120.0,105110.0,0.07551972]
[1749892107744,1.06837152,105120.0,105110.0,0.0576968]
[1749892108166,1.06837152,105120.0,105110.0,0.07551972]
[1749892108593,1.06837152,105120.0,105110.0,0.0576968]
[1749892108816,1.06837152,105120.0,105110.0,0.07551965]
[1749892109033,1.06837152,105120.0,105110.0,0.0576968]
[1749892109257,1.06837152,105120.0,105110.0,0.07551963]
[1749892109467,1.06837152,105120.0,105110.0,0.0576968]
[1749892109676,1.06837152,105120.0,105110.0,0.07551963]
[1749892109864,1.06837152,105120.0,105110.0,0.0576968]
[1749892110127,1.06837152,105120.0,105110.0,0.07551985]
[1749892110340,1.06837152,105120.0,105110.0,0.07551986]
[1749892111005,1.06837152,105120.0,105110.0,0.07552022]
[1749892111667,1.06837152,105120.0,105110.0,0.07552102]
[1749892112094,1.06837152,105120.0,105110.0,0.07552143]
[1749892112760,1.06837152,105120.0,105110.0,0.075523]
[1749892113213,1.06837152,105120.0,105110.0,0.07552301]
[1749892113479,1.06837152,105120.0,105110.0,0.07552285]
[1749892113686,1.06837152,105120.0,105110.0,0.07552308]
[1749892113926,1.06837152,105120.0,105110.0,0.0576968]
[1749892114141,1.06837152,105120.0,105110.0,0.07552313]
[1749892114360,1.71902938,105120.0,105110.0,0.07552313]
[1749892114586,1.71902938,105120.0,105110.0,0.0576968]
[1749892115020,1.62288016,105120.0,105110.0,0.07552657]
[1749892115231,1.62288016,105120.0,105110.0,0.0576968]
[1749892115445,1.62288016,105120.0,105110.0,0.06252725]
[1749892115892,1.62288016,105120.0,105110.0,0.06352692]
[1749892116101,1.62035918,105120.0,105110.0,0.06352692]
[1749892116318,1.62035918,105120.0,105110.0,0.06352691]
[1749892116758,1.62035918,105120.0,105110.0,0.0456968]
[1749892117232,1.62035918,105120.0,105110.0,0.06350561]
[1749892117444,1.06585054,105120.0,105110.0,0.06350561]
[1749892117683,1.06585054,105120.0,105110.0,0.06350524]
[1749892117896,0.87145054,105120.0,105110.0,0.08983658]
[1749892118100,1.06565054,105120.0,105110.0,0.0898363]
[1749892118310,1.06565054,105120.0,105110.0,0.08983626]
[1749892118527,1.06565054,105120.0,105110.0,0.06350492]
[1749892118742,1.06565054,105120.0,105110.0,0.0456968]
[1749892118964,1.06565054,105120.0,105110.0,0.06350492]
[1749892119176,1.06565054,105120.0,105110.0,0.06350488]
[1749892119383,1.06565054,105120.0,105110.0,0.0635048]
[1749892120013,1.06565054,105120.0,105110.0,0.0456968]
[1749892120234,1.06565054,105120.0,105110.0,0.06350483]
[1749892121419,1.06565054,105120.0,105110.0,0.0634998]
[1749892123176,1.06565054,105120.0,105110.0,0.0635058]
[1749892123824,1.06565054,105120.0,105110.0,0.06350577]
[1749892124464,1.06565054,105120.0,105110.0,0.0456968]
[1749892124671,1.06565054,105120.0,105110.0,0.06350579]
[1749892124905,1.06565054,105120.0,105110.0,0.0456968]